fUSD/lending_fUSD_20241121
["ID","MTS","AMOUNT","RATE_DAILY","PERIOD"]
[342851073,1732181452693,-500.0,0.00041095,18]
[342851074,1732181452703,-500.0,0.00041095,18]
[342851075,1732181452712,-500.0,0.00041095,18]
[342851076,1732181452721,-500.0,0.00041095,18]
[342851077,1732181452732,-500.0,0.00041095,18]
[342851078,1732181452740,-500.0,0.00041095,18]
[342851079,1732181452749,-500.0,0.00041095,18]
[342851080,1732181452759,-500.0,0.00041095,18]
[342851081,1732181452768,-500.0,0.00041095,18]
[342851082,1732181452777,-500.0,0.00041095,18]
[342851083,1732181452786,-500.0,0.00041095,18]
[342851084,1732181452796,-500.0,0.00041095,18]
[342851085,1732181452805,-500.0,0.00041095,18]
[342851086,1732181452816,-575.96314353,0.00041095,18]
[342851087,1732181452831,-500.0,0.00041095,18]
[342851088,1732181452847,-500.0,0.00041095,18]
[342851089,1732181452860,-500.0,0.00041095,18]
[342851090,1732181452875,-500.0,0.00041095,18]
[342851091,1732181452891,-617.79,0.00041095,18]
[342851092,1732181452906,-500.0,0.00041095,18]
[342851093,1732181452919,-500.0,0.00041095,18]
[342851094,1732181452933,-500.0,0.00041095,18]
[342851095,1732181452952,-1921.52,0.00041095,18]
[342851096,1732181452967,-500.0,0.00041095,18]
[342851097,1732181452982,-500.0,0.00041095,18]
[342851098,1732181452997,-777.83,0.00041095,18]
[342851099,1732181453012,-500.0,0.00041095,18]
[342851100,1732181453028,-1922.72,0.00041095,18]
[342851101,1732181453043,-770.03,0.00041095,18]
[342851102,1732181453058,-4845.77,0.00041095,18]
[342851103,1732181453072,-1125.8,0.00041095,18]
[342851104,1732181453089,-500.0,0.00041095,18]
[342851105,1732181453101,-946.83,0.00041095,18]
[342851106,1732181453114,-500.0,0.00041095,18]
[342851107,1732181453133,-500.0,0.00041095,18]
[342851108,1732181453145,-577.3,0.00041095,18]
[342851109,1732181453157,-500.0,0.00041095,18]
[342851110,1732181453171,-634.0,0.00041095,18]
[342851111,1732181453187,-1009.74,0.00041095,18]
[342851112,1732181453199,-500.0,0.00041095,18]
[342851113,1732181453212,-500.0,0.00041095,18]
[342851114,1732181453234,-4371.28,0.00041095,18]
[342851115,1732181453247,-920.03,0.00041095,18]
[342851116,1732181453260,-500.0,0.00041095,18]
[342851117,1732181453274,-500.0,0.00041095,18]
[342851118,1732181453287,-666.92,0.00041095,18]
[342851119,1732181453300,-500.0,0.00041095,18]
[342851120,1732181453313,-500.0,0.00041095,18]
[342851121,1732181453326,-500.0,0.00041095,18]
[342851122,1732181453339,-500.0,0.00041095,18]
[342851123,1732181453352,-500.0,0.00041095,18]
[342851124,1732181453365,-1135.2,0.00041095,18]
[342851125,1732181453378,-500.0,0.00041095,18]
[342851126,1732181453394,-500.0,0.00041095,18]
[342851127,1732181453407,-1621.4,0.00041095,18]
[342851128,1732181453420,-500.0,0.00041095,18]
[342851129,1732181453435,-500.0,0.00041095,18]
[342851130,1732181453449,-500.0,0.00041095,18]
[342851131,1732181453464,-674.85,0.00041095,18]
[342851132,1732181453477,-1000.0,0.00041095,2]
[342851133,1732181453490,-500.0,0.00041095,18]
[342851134,1732181453504,-167.85457185,0.00041095,18]
[342851135,1732181453518,-500.0,0.00041095,18]
[342851136,1732181453531,-500.0,0.00041095,18]
[342851137,1732181453544,-2542.26,0.00041095,18]
[342851138,1732181453557,-918.02,0.00041095,18]
[342851139,1732181453572,-500.0,0.00041095,18]
[342851140,1732181453585,-500.0,0.00041095,18]
[342851141,1732181453598,-558.94,0.00041095,18]
[342851142,1732181453611,-500.0,0.00041095,18]
[342851143,1732181453624,-350.81302184,0.00041095,18]
[342851144,1732181453648,-2433.98697816,0.00041095,18]
[342851145,1732181453661,-500.0,0.00041095,18]
[342851146,1732181453673,-519.1112071,0.00041095,18]
[342851147,1732181453685,-446.09193028,0.00041095,18]
[342851148,1732181453701,-59.62806972,0.00041095,18]
[342851149,1732181453714,-500.0,0.00041095,18]
[342851150,1732181453728,-954.88,0.00041095,18]
[342851151,1732181453742,-500.0,0.00041095,18]
[342851152,1732181453758,-616.32,0.00041095,18]
[342851153,1732181453772,-1455.66,0.00041095,18]
[342851154,1732181453785,-500.0,0.00041095,18]
[342851155,1732181453798,-570.52,0.00041095,18]
[342851156,1732181453810,-692.61505959,0.00041095,18]
[342851157,1732181453826,-23.23494041,0.00041095,18]
[342851158,1732181453841,-500.0,0.00041095,18]
[342851159,1732181453853,-500.0,0.00041095,18]
[342851160,1732181453866,-500.0,0.00041095,18]
[342851161,1732181453879,-68.43660571,0.00041095,14]
[342851162,1732181454792,-157.85427511,0.00036685,2]
[342851163,1732181454805,-902.5,0.00040671,60]
[342851164,1732181454819,-266.84894329,0.00041095,14]
[342851165,1732181454834,-61.3437816,0.00041095,14]
[342851166,1732181454918,-93.6181504,0.00041095,14]
[342851167,1732181454935,-274.1399685,0.00041095,14]
[342851168,1732181455023,-500.0,0.00040027,2]
[342851169,1732181455036,-61.1455805,0.00041095,14]
[342851170,1732181455048,-500.0,0.00041095,18]
[342851171,1732181455061,-166.13960122,0.00041095,14]
[342851172,1732181455076,-169.14594778,0.00041095,14]
[342851173,1732181455089,-252.17866558,0.00041095,14]
[342851174,1732181455948,-83.10688342,0.00041095,14]
[342851175,1732181455958,-335.285549,0.00041095,14]
[342851176,1732181455968,-335.285549,0.00041095,14]
[342851177,1732181455978,-1738.89,0.00041095,18]
[342851178,1732181455987,-335.285549,0.00041095,14]
[342851179,1732181455996,-500.0,0.00041095,18]
[342851180,1732181456006,-571.43833368,0.00041095,18]
[342851181,1732181456180,-1780.22166632,0.00041095,18]
[342851182,1732181456190,-2192.5,0.00041095,18]
[342851183,1732181456199,-500.0,0.00041095,18]
[342851184,1732181456208,-843.70856298,0.00041095,18]
[342851185,1732181456220,-2829.18561165,0.00041095,18]
[342851186,1732181456232,-285.83350481,0.00041095,18]
[342851187,1732181456243,-102.85232056,0.00041095,18]
[342851188,1732181456253,-335.285549,0.00041095,14]
[342851189,1732181456263,-500.0,0.00041095,18]
[342851190,1732181456273,-335.285549,0.00041095,14]
[342851191,1732181456284,-2109.26,0.00041095,18]
[342851192,1732181456294,-335.285549,0.00041095,14]
[342851193,1732181456305,-667.84,0.00041095,18]
[342851194,1732181456315,-815.56,0.00041095,18]
[342851195,1732181456324,-335.285549,0.00041095,14]
[342851196,1732181456333,-500.0,0.00041095,18]
[342851197,1732181457008,-500.0,0.00041095,18]
[342851198,1732181457039,-500.0,0.00041095,18]
[342851199,1732181457067,-500.0,0.00041095,18]
[342851200,1732181457093,-335.285549,0.00041095,14]
[342851201,1732181457113,-335.285549,0.00041095,14]
[342851202,1732181457123,-335.285557,0.00041095,14]
[342851203,1732181457133,-500.0,0.00041095,18]
[342851204,1732181457142,-500.0,0.00041095,18]
[342851205,1732181457152,-520.07,0.00041095,18]
[342851206,1732181457161,-500.0,0.00041095,18]
[342851207,1732181457171,-500.0,0.00041095,18]
[342851208,1732181457180,-500.0,0.00041095,18]
[342851209,1732181457189,-500.0,0.00041095,18]
[342851210,1732181457198,-585.16,0.00041095,18]
[342851211,1732181457208,-500.0,0.00041095,18]
[342851212,1732181457217,-500.0,0.00041095,18]
[342851213,1732181457227,-500.0,0.00041095,18]
[342851214,1732181457236,-500.0,0.00041095,18]
[342851215,1732181457246,-500.0,0.00041095,18]
[342851216,1732181457255,-1721.05,0.00041095,18]
[342851217,1732181457265,-500.0,0.00041095,18]
[342851218,1732181457274,-500.0,0.00041095,18]
[342851219,1732181457284,-500.0,0.00041095,18]
[342851220,1732181457294,-3183.97,0.00041095,18]
[342851221,1732181457303,-500.0,0.00041095,18]
[342851222,1732181457313,-500.0,0.00041095,18]
[342851223,1732181457322,-500.0,0.00041095,18]
[342851224,1732181457332,-3202.37,0.00041095,7]
[342851225,1732181457341,-1219.45,0.00041095,18]
[342851226,1732181457351,-500.0,0.00041095,18]
[342851227,1732181457360,-500.0,0.00041095,18]
[342851228,1732181457370,-1772.27,0.00041095,18]
[342851229,1732181457381,-1914.43,0.00041095,18]
[342851230,1732181457394,-1065.76,0.00041095,18]
[342851231,1732181457404,-351.40982844,0.00041095,18]
[342851232,1732181457473,-148.59017156,0.00041095,18]
[342851233,1732181457483,-500.0,0.00041095,18]
[342851234,1732181457492,-500.0,0.00041095,18]
[342851235,1732181457501,-604.69,0.00041095,18]
[342851236,1732181457510,-738.16,0.00041095,18]
[342851237,1732181457520,-892.09,0.00041095,18]
[342851238,1732181457530,-568.27,0.00041095,18]
[342851239,1732181457540,-1470.4,0.00041095,18]
[342851240,1732181457549,-660.21,0.00041095,18]
[342851241,1732181457559,-738.17,0.00041095,18]
[342851242,1732181457568,-464.45396789,0.00041095,18]
[342851243,1732181457580,-35.54603211,0.00041095,18]
[342851244,1732181457590,-2384.59,0.00041095,18]
[342851245,1732181457600,-500.0,0.00041095,18]
[342851246,1732181457610,-500.0,0.00041095,18]
[342851247,1732181457619,-500.0,0.00041095,18]
[342851248,1732181457628,-2183.46,0.00041095,18]
[342851249,1732181457637,-800.69,0.00041095,18]
[342851250,1732181457646,-500.0,0.00041095,18]
[342851251,1732181457655,-500.0,0.00041095,18]
[342851252,1732181457664,-526.35667602,0.00041095,18]
[342851253,1732181457674,-500.0,0.00041095,18]
[342851254,1732181457683,-615.61,0.00041095,18]
[342851255,1732181457692,-500.0,0.00041095,18]
[342851256,1732181457702,-813.03,0.00041095,18]
[342851257,1732181457711,-1278.58,0.00041095,18]
[342851258,1732181457720,-500.0,0.00041095,18]
[342851259,1732181457729,-613.43416056,0.00041095,18]
[342851260,1732181457739,-1311.84,0.00041095,18]
[342851261,1732181457749,-500.0,0.00041095,18]
[342851262,1732181457758,-500.0,0.00041095,18]
[342851263,1732181457767,-500.0,0.00041095,18]
[342851264,1732181457776,-500.0,0.00041095,18]
[342851265,1732181457785,-500.0,0.00041095,18]
[342851266,1732181457794,-500.0,0.00041095,18]
[342851267,1732181457806,-3060.14,0.00041095,18]
[342851268,1732181457816,-1217.76,0.00041095,18]
[342851269,1732181457826,-2664.8,0.00041095,18]
[342851270,1732181457836,-500.0,0.00041095,18]
[342851271,1732181457845,-500.0,0.00041095,18]
[342851272,1732181457856,-500.0,0.00041095,18]
[342851273,1732181457866,-353.08,0.00041095,7]
[342851274,1732181457875,-850.0,0.00041095,120]
[342851275,1732181457884,-500.0,0.00041095,18]
[342851276,1732181457893,-500.0,0.00041095,18]
[342851277,1732181457903,-500.0,0.00041095,18]
[342851278,1732181457914,-2962.26,0.00041095,18]
[342851279,1732181457923,-500.0,0.00041095,18]
[342851280,1732181457932,-1700.3,0.00041095,18]
[342851281,1732181457941,-1170.03154055,0.00041095,30]
[342851282,1732181457951,-500.0,0.00041095,18]
[342851283,1732181457960,-753.92,0.00041095,18]
[342851284,1732181457970,-794.44,0.00041095,18]
[342851285,1732181457979,-543.98714385,0.00041095,18]
[342851286,1732181457988,-500.0,0.00041095,18]
[342851287,1732181457998,-500.0,0.00041095,18]
[342851288,1732181458008,-514.01568177,0.00041095,18]
[342851289,1732181458018,-2711.27,0.00041095,18]
[342851290,1732181458028,-500.0,0.00041095,18]
[342851291,1732181458037,-1150.14,0.00041095,18]
[342851292,1732181458046,-2517.23275783,0.00041095,18]
[342851293,1732181458095,-782.42724217,0.00041095,18]
[342851294,1732181458105,-500.0,0.00041095,18]
[342851295,1732181458115,-1641.7,0.00041095,18]
[342851296,1732181458124,-1128.34,0.00041095,18]
[342851297,1732181458135,-500.0,0.00041095,18]
[342851298,1732181458144,-500.0,0.00041095,18]
[342851299,1732181458168,-1956.05,0.00041095,18]
[342851300,1732181458178,-5349.91,0.00041095,18]
[342851301,1732181458187,-500.0,0.00041095,18]
[342851302,1732181458197,-1222.32,0.00041095,18]
[342851303,1732181458207,-500.0,0.00041095,18]
[342851304,1732181458218,-1052.22,0.00041095,18]
[342851305,1732181458227,-737.32,0.00041095,18]
[342851306,1732181458237,-671.15,0.00041095,18]
[342851307,1732181458246,-4259.93,0.00041095,18]
[342851308,1732181458255,-1936.84,0.00041095,18]
[342851309,1732181458264,-500.0,0.00041095,18]
[342851310,1732181458273,-568.53,0.00041095,18]
[342851311,1732181458283,-2465.37,0.00041095,18]
[342851312,1732181458292,-500.0,0.00041095,18]
[342851313,1732181458301,-500.0,0.00041095,18]
[342851314,1732181458311,-1028.35,0.00041095,18]
[342851315,1732181458321,-151.0,0.00041095,14]
[342851316,1732181458330,-500.0,0.00041095,18]
[342851317,1732181458340,-151.0,0.00041095,14]
[342851318,1732181458350,-151.0,0.00041095,14]
[342851319,1732181458360,-151.0,0.00041095,14]
[342851320,1732181458369,-2045.24,0.00041095,18]
[342851321,1732181458379,-2825.13,0.00041095,18]
[342851322,1732181458389,-151.0,0.00041095,14]
[342851323,1732181458403,-151.0,0.00041095,14]
[342851324,1732181458412,-151.0,0.00041095,14]
[342851325,1732181458422,-500.0,0.00041095,18]
[342851326,1732181458432,-151.0,0.00041095,14]
[342851327,1732181458442,-500.0,0.00041095,18]
[342851328,1732181458452,-151.0,0.00041095,14]
[342851329,1732181458461,-151.0,0.00041095,14]
[342851330,1732181458472,-500.0,0.00041095,18]
[342851331,1732181458482,-151.0,0.00041095,14]
[342851332,1732181458491,-687.57,0.00041095,18]
[342851333,1732181458501,-151.0,0.00041095,14]
[342851334,1732181458511,-952.23,0.00041095,18]
[342851335,1732181458521,-295.479307,0.00041095,14]
[342851336,1732181458531,-500.0,0.00041095,18]
[342851337,1732181458540,-295.479307,0.00041095,14]
[342851338,1732181458550,-500.0,0.00041095,18]
[342851339,1732181458559,-295.479307,0.00041095,14]
[342851340,1732181458568,-295.479307,0.00041095,14]
[342851341,1732181458577,-500.0,0.00041095,18]
[342851342,1732181458587,-295.479307,0.00041095,14]
[342851343,1732181458596,-500.0,0.00041095,18]
[342851344,1732181458605,-748.87,0.00041095,18]
[342851345,1732181458614,-295.479307,0.00041095,14]
[342851346,1732181458623,-295.479307,0.00041095,14]
[342851347,1732181458633,-663.13,0.00041095,18]
[342851348,1732181458642,-295.479307,0.00041095,14]
[342851349,1732181458651,-500.0,0.00041095,18]
[342851350,1732181458660,-295.479307,0.00041095,14]
[342851351,1732181458670,-3233.44,0.00041095,18]
[342851352,1732181458681,-295.479307,0.00041095,14]
[342851353,1732181458690,-295.479307,0.00041095,14]
[342851354,1732181458700,-295.479307,0.00041095,14]
[342851355,1732181458710,-295.479307,0.00041095,14]
[342851356,1732181458719,-295.479312,0.00041095,14]
[342851357,1732181458729,-1151.02,0.00041095,18]
[342851358,1732181458739,-1768.68,0.00041095,18]
[342851359,1732181458748,-500.0,0.00041095,18]
[342851360,1732181458758,-500.0,0.00041095,18]
[342851361,1732181458767,-500.0,0.00041095,18]
[342851362,1732181458776,-500.0,0.00041095,18]
[342851363,1732181458785,-748.38,0.00041095,18]
[342851364,1732181458794,-208.0683773,0.00041095,18]
[342851365,1732181458803,-1200.52,0.00041095,18]
[342851366,1732181458812,-588.09,0.00041095,18]
[342851367,1732181458821,-1215.3,0.00041095,18]
[342851368,1732181458831,-500.0,0.00041095,18]
[342851369,1732181458840,-500.0,0.00041095,18]
[342851370,1732181458850,-500.0,0.00041095,18]
[342851371,1732181458860,-500.0,0.00041095,18]
[342851372,1732181458870,-607.6,0.00041095,18]
[342851373,1732181458880,-500.0,0.00041095,18]
[342851374,1732181458889,-500.0,0.00041095,18]
[342851375,1732181458899,-500.0,0.00041095,18]
[342851376,1732181458908,-3194.62,0.00041095,18]
[342851377,1732181458919,-1675.42,0.00041095,18]
[342851378,1732181458928,-500.0,0.00041095,18]
[342851379,1732181458937,-559.59,0.00041095,18]
[342851380,1732181458947,-500.0,0.00041095,18]
[342851381,1732181458956,-830.85,0.00041095,18]
[342851382,1732181458965,-1408.78,0.00041095,18]
[342851383,1732181458975,-500.0,0.00041095,18]
[342851384,1732181458984,-500.0,0.00041095,18]
[342851385,1732181458994,-1644.81,0.00041095,18]
[342851386,1732181459003,-500.0,0.00041095,18]
[342851387,1732181459013,-580.64,0.00041095,18]
[342851388,1732181459023,-500.0,0.00041095,18]
[342851389,1732181459033,-867.3,0.00041095,18]
[342851390,1732181459043,-500.0,0.00041095,2]
[342851391,1732181459052,-500.0,0.00041095,18]
[342851392,1732181459062,-500.0,0.00041095,18]
[342851393,1732181459071,-500.0,0.00041095,18]
[342851394,1732181459081,-500.0,0.00041095,18]
[342851395,1732181459090,-500.0,0.00041095,18]
[342851396,1732181459100,-500.0,0.00041095,18]
[342851397,1732181459109,-500.0,0.00041095,18]
[342851398,1732181459120,-500.0,0.00041095,18]
[342851399,1732181459130,-690.5,0.00041095,18]
[342851400,1732181459139,-500.0,0.00041095,18]
[342851401,1732181459148,-961.32,0.00041095,18]
[342851402,1732181459159,-604.79,0.00041095,18]
[342851403,1732181459169,-632.98,0.00041095,18]
[342851404,1732181459180,-500.0,0.00041095,18]
[342851405,1732181459190,-550.74,0.00041095,18]
[342851406,1732181459200,-500.0,0.00041095,18]
[342851407,1732181459211,-3265.28,0.00041095,18]
[342851408,1732181459221,-1489.94,0.00041095,120]
[342851409,1732181459231,-690.29,0.00041095,18]
[342851410,1732181459241,-500.0,0.00041095,18]
[342851411,1732181459251,-500.0,0.00041095,18]
[342851412,1732181459260,-151.0,0.00041095,14]
[342851413,1732181459270,-154.088654,0.00041095,14]
[342851414,1732181459279,-500.0,0.00041095,18]
[342851415,1732181459289,-590.6,0.00041095,18]
[342851416,1732181459299,-500.0,0.00041095,18]
[342851417,1732181459310,-500.0,0.00041095,18]
[342851418,1732181459320,-578.61,0.00041095,18]
[342851419,1732181459329,-1621.15,0.00041095,18]
[342851420,1732181459339,-1837.44,0.00041095,18]
[342851421,1732181459348,-1104.06,0.00041095,18]
[342851422,1732181459358,-876.01,0.00041095,18]
[342851423,1732181459368,-1750.41,0.00041095,18]
[342851424,1732181459378,-500.0,0.00041095,18]
[342851425,1732181459389,-266.50531567,0.00041095,18]
[342851426,1732181459400,-656.87,0.00041095,18]
[342851427,1732181459409,-500.0,0.00041095,18]
[342851428,1732181459419,-200.0,0.00041095,10]
[342851429,1732181459429,-500.0,0.00041095,18]
[342851430,1732181459438,-819.11,0.00041095,18]
[342851431,1732181459447,-3426.78,0.00041095,18]
[342851432,1732181459457,-502.20815247,0.00041095,18]
[342851433,1732181459467,-589.04,0.00041095,18]
[342851434,1732181459478,-500.0,0.00041095,18]
[342851435,1732181459487,-500.0,0.00041095,18]
[342851436,1732181459497,-500.0,0.00041095,18]
[342851437,1732181459508,-500.0,0.00041095,18]
[342851438,1732181459518,-500.0,0.00041095,18]
[342851439,1732181459528,-1376.92,0.00041095,18]
[342851440,1732181459538,-500.0,0.00041095,18]
[342851441,1732181459547,-1244.35,0.00041095,18]
[342851442,1732181459556,-1177.44,0.00041095,18]
[342851443,1732181459565,-500.0,0.00041095,18]
[342851444,1732181459575,-500.0,0.00041095,18]
[342851445,1732181459584,-151.0,0.00041095,14]
[342851446,1732181459594,-739.54,0.00041095,18]
[342851447,1732181459603,-1181.32,0.00041095,18]
[342851448,1732181459613,-151.0,0.00041095,14]
[342851449,1732181459622,-2304.1,0.00041095,18]
[342851450,1732181459632,-500.0,0.00041095,18]
[342851451,1732181459642,-151.0,0.00041095,14]
[342851452,1732181459651,-151.0,0.00041095,14]
[342851453,1732181459661,-500.0,0.00041095,18]
[342851454,1732181459897,-1017.87,0.00041095,18]
[342851455,1732181459923,-671.56,0.00041095,18]
[342851456,1732181459933,-500.0,0.00041095,18]
[342851457,1732181459943,-500.0,0.00041095,18]
[342851458,1732181459952,-669.44,0.00041095,18]
[342851459,1732181459963,-939.26,0.00041095,18]
[342851460,1732181459972,-500.0,0.00041095,18]
[342851461,1732181459982,-2503.04,0.00041095,18]
[342851462,1732181459992,-500.0,0.00041095,18]
[342851463,1732181460002,-516.31,0.00041095,18]
[342851464,1732181460013,-500.0,0.00041095,2]
[342851465,1732181460023,-500.0,0.00041095,18]
[342851466,1732181460033,-711.58,0.00041095,18]
[342851467,1732181460044,-1808.55,0.00041095,18]
[342851468,1732181460055,-500.0,0.00041095,18]
[342851469,1732181460066,-522.22,0.00041095,18]
[342851470,1732181460076,-2000.0,0.00041095,30]
[342851471,1732181460086,-500.0,0.00041095,18]
[342851472,1732181460096,-890.66,0.00041095,18]
[342851473,1732181460106,-697.83,0.00041095,18]
[342851474,1732181460115,-151.0,0.00041095,14]
[342851475,1732181460125,-500.5545889,0.00041095,18]
[342851476,1732181460135,-156.635685,0.00041095,14]
[342851477,1732181460144,-1408.78,0.00041095,18]
[342851478,1732181460154,-500.0,0.00041095,18]
[342851479,1732181460164,-1491.7,0.00041095,18]
[342851480,1732181460175,-1731.05,0.00041095,18]
[342851481,1732181460185,-2660.19,0.00041095,18]
[342851482,1732181460195,-500.37878393,0.00041095,18]
[342851483,1732181460206,-1138.76,0.00041095,18]
[342851484,1732181460217,-2068.99,0.00041095,18]
[342851485,1732181460227,-518.8,0.00041095,18]
[342851486,1732181460238,-500.0,0.00041095,18]
[342851487,1732181460248,-500.0,0.00041095,18]
[342851488,1732181460258,-500.0,0.00041095,18]
[342851489,1732181460267,-682.31,0.00041095,18]
[342851490,1732181460278,-1669.2,0.00041095,18]
[342851491,1732181460287,-500.0,0.00041095,18]
[342851492,1732181460296,-1403.56,0.00041095,18]
[342851493,1732181460306,-1053.2,0.00041095,18]
[342851494,1732181460316,-985.6,0.00041095,18]
[342851495,1732181460327,-1597.18,0.00041095,18]
[342851496,1732181460337,-2864.89,0.00041095,18]
[342851497,1732181460346,-500.0,0.00041095,18]
[342851498,1732181460356,-500.0,0.00041095,18]
[342851499,1732181460365,-500.0,0.00041095,18]
[342851500,1732181460375,-930.53,0.00041095,18]
[342851501,1732181460388,-1273.59,0.00041095,18]
[342851502,1732181460397,-500.0,0.00041095,18]
[342851503,1732181460407,-3181.49,0.00041095,18]
[342851504,1732181460417,-500.0,0.00041095,18]
[342851505,1732181460431,-748.62,0.00041095,18]
[342851506,1732181460451,-500.0,0.00041095,18]
[342851507,1732181460462,-500.0,0.00041095,18]
[342851508,1732181460471,-635.12,0.00041095,18]
[342851509,1732181460481,-500.0,0.00041095,18]
[342851510,1732181460490,-500.0,0.00041095,18]
[342851511,1732181460500,-500.0,0.00041095,18]
[342851512,1732181460510,-1994.81,0.00041095,18]
[342851513,1732181460519,-1842.08,0.00041095,18]
[342851514,1732181460529,-2251.3,0.00041095,18]
[342851515,1732181460539,-5307.28,0.00041095,18]
[342851516,1732181460549,-1451.28,0.00041095,18]
[342851517,1732181460559,-1460.16,0.00041095,18]
[342851518,1732181460568,-710.94,0.00041095,18]
[342851519,1732181460578,-1218.98,0.00041095,18]
[342851520,1732181460588,-1803.52,0.00041095,18]
[342851521,1732181460598,-500.0,0.00041095,18]
[342851522,1732181460608,-500.0,0.00041095,18]
[342851523,1732181460618,-500.0,0.00041095,18]
[342851524,1732181460627,-500.0,0.00041095,18]
[342851525,1732181460637,-799.92,0.00041095,18]
[342851526,1732181460646,-500.0,0.00041095,18]
[342851527,1732181460656,-500.0,0.00041095,18]
[342851528,1732181460666,-500.0,0.00041095,18]
[342851529,1732181460676,-500.0,0.00041095,18]
[342851530,1732181460685,-500.0,0.00041095,18]
[342851531,1732181460695,-500.0,0.00041095,18]
[342851532,1732181460705,-500.0,0.00041095,18]
[342851533,1732181460714,-1289.52,0.00041095,18]
[342851534,1732181460724,-500.0,0.00041095,18]
[342851535,1732181460733,-500.0,0.00041095,2]
[342851536,1732181460743,-2962.64,0.00041095,18]
[342851537,1732181460753,-874.04,0.00041095,18]
[342851538,1732181460763,-821.83,0.00041095,18]
[342851539,1732181460772,-500.0,0.00041095,18]
[342851540,1732181460781,-1889.1,0.00041095,18]
[342851541,1732181460791,-500.0,0.00041095,18]
[342851542,1732181460801,-760.8,0.00041095,18]
[342851543,1732181460811,-500.0,0.00041095,18]
[342851544,1732181460820,-1121.56,0.00041095,18]
[342851545,1732181460830,-500.0,0.00041095,18]
[342851546,1732181460839,-500.0,0.00041095,18]
[342851547,1732181460849,-814.33,0.00041095,18]
[342851548,1732181460858,-500.0,0.00041095,18]
[342851549,1732181460868,-1315.39,0.00041095,18]
[342851550,1732181460877,-1191.07,0.00041095,18]
[342851551,1732181460887,-500.0,0.00041095,18]
[342851552,1732181460897,-530.88,0.00041095,18]
[342851553,1732181460907,-500.0,0.00041095,18]
[342851554,1732181460916,-500.0,0.00041095,18]
[342851555,1732181460935,-815.43,0.00041095,18]
[342851556,1732181460945,-503.15,0.00041095,18]
[342851557,1732181460955,-966.2,0.00041095,18]
[342851558,1732181460965,-637.41,0.00041095,18]
[342851559,1732181460975,-500.0,0.00041095,18]
[342851560,1732181460986,-500.0,0.00041095,18]
[342851561,1732181460997,-1162.38,0.00041095,18]
[342851562,1732181461006,-3147.64,0.00041095,18]
[342851563,1732181461015,-500.0,0.00041095,18]
[342851564,1732181461025,-500.0,0.00041095,18]
[342851565,1732181461035,-2020.52,0.00041095,18]
[342851566,1732181461044,-820.65,0.00041095,18]
[342851567,1732181461054,-1372.39,0.00041095,18]
[342851568,1732181461063,-500.0,0.00041095,18]
[342851569,1732181461074,-500.0,0.00041095,18]
[342851570,1732181461085,-500.0,0.00041095,18]
[342851571,1732181461095,-1135.7,0.00041095,18]
[342851572,1732181461106,-500.0,0.00041095,18]